bitfinex-derivatives/quotes_SOLF0:USTF0_20251210
["timestamp","ask_amount","ask_price","bid_price","bid_amount"]
[1765377481502,0.04688775,137.15,137.12,0.0500365]
[1765377481989,6.5627,137.14,137.12,0.0500365]
[1765377482299,0.04688775,137.15,137.12,3.2100365]
[1765377482495,6.60928775,137.15,137.12,3.2100365]
[1765377483104,6.5616,137.17,137.12,3.2100365]
[1765377484004,102.031,137.22,137.14,3.15]
[1765377484005,6.5604,137.19,137.14,3.15]
[1765377484191,216.3775669,137.25,137.16,3.15]
[1765377484192,102.0207,137.23,137.16,3.15]
[1765377484397,102.0207,137.23,137.19,3.15]
[1765377485102,102.0368,137.21,137.18,0.0484552]
[1765377485400,102.0823,137.15,137.11,3.15]
[1765377485800,102.092,137.14,137.06,3.15]
[1765377486102,102.1024,137.12,137.06,3.15]
[1765377486300,0.04641664,137.1,137.08,3.19985576]
[1765377488799,0.04641664,137.1,137.08,0.04985576]
[1765377489398,6.61121664,137.1,137.08,0.04985576]
[1765377490402,0.04641664,137.1,137.08,3.10985576]
[1765377493108,6.61141664,137.1,137.08,0.04985576]
[1765377493505,102.1296,137.09,137.04,3.06]
[1765377493707,102.1296,137.09,137.0,3.06]
[1765377493708,102.1425,137.07,137.0,3.06]
[1765377494012,102.1174,137.1,137.03,3.06]
[1765377494512,0.05222127,137.08,137.05,0.05141743]
[1765377494810,0.05222127,137.08,137.05,3.11141743]
[1765377495007,6.61812127,137.08,137.05,3.11141743]
[1765377495906,0.05222127,137.08,137.05,3.11141743]
[1765377498408,6.61792127,137.08,137.05,3.11141743]
[1765377499911,0.05222127,137.08,137.05,3.11141743]
[1765377500306,0.05222127,137.08,137.07,3.06]
[1765377500506,0.05222127,137.08,137.06,3.06]
[1765377501816,102.18812127,137.08,137.05,0.05141743]
[1765377502212,6.5662,137.07,137.05,0.05141743]
[1765377502419,102.1583,137.05,136.98,3.06]
[1765377503422,6.61661883,137.03,137.0,3.1080846]
[1765377503622,0.04851883,137.03,137.0,3.1080846]
[1765377504815,102.1303,137.09,137.0,3.1080846]
[1765377505016,102.1134,137.11,137.0,3.06]
[1765377505322,6.5652,137.09,137.01,3.06]
[1765377505719,102.1324,137.08,137.01,3.06]
[1765377505919,102.19837291,137.06,137.03,0.05464661]
[1765377506120,102.19720691,137.06,137.03,0.05229097]
[1765377506322,114.54977381,137.06,137.03,0.05229097]
[1765377506518,6.567,137.05,137.03,0.05229097]
[1765377506723,0.04640691,137.06,137.03,3.11229097]
[1765377507320,6.5673,137.05,137.03,0.05229097]
[1765377508427,6.61330691,137.06,137.03,3.11229097]
[1765377508826,0.04640691,137.06,137.03,3.11229097]
[1765377510725,0.04640691,137.06,137.03,0.05229097]
[1765377511227,0.04640691,137.06,137.03,3.11229097]
[1765377511527,6.61310691,137.06,137.03,3.11229097]
[1765377511725,0.04640691,137.06,137.03,0.05229097]
[1765377512026,102.19620691,137.06,137.03,0.05229097]
[1765377512221,6.5672,137.05,137.03,0.05229097]
[1765377514025,7.14787811,137.06,137.03,0.05229097]
[1765377514233,0.04640691,137.06,137.03,0.05229097]
[1765377514727,6.5672,137.05,137.03,0.05229097]
[1765377514935,6.5672,137.05,136.97,3.27]
[1765377514936,102.1706,137.03,136.97,3.27]
[1765377515127,109.2720712,137.03,136.97,3.27]
[1765377516027,0.05326815,137.01,136.99,0.05267214]
[1765377516632,0.05326815,137.01,136.95,61.98]
[1765377516633,7.1014712,137.0,136.95,61.98]
[1765377517334,6.5705,136.98,136.95,61.98]
[1765377517519,6.62294222,136.98,136.95,62.03079787]
[1765377517830,0.05244222,136.98,136.96,3.27]
[1765377518628,0.05244222,136.98,136.95,62.03079787]
[1765377520031,0.05244222,136.98,136.96,3.27]
[1765377521438,0.05244222,136.98,136.95,65.30079787]
[1765377521638,0.05244222,136.98,136.96,3.27]
[1765377522030,0.05244222,136.98,136.95,62.03079787]
[1765377522241,0.05244222,136.98,136.95,65.30079787]
[1765377523030,6.62314222,136.98,136.95,65.30079787]
[1765377523232,0.05244222,136.98,136.95,62.03079787]
[1765377523432,6.571,136.97,136.95,62.03079787]
[1765377523632,0.05244222,136.98,136.95,65.30079787]
[1765377523827,0.05244222,136.98,136.96,3.27]
[1765377524030,0.05244222,136.98,136.95,62.03079787]
[1765377524529,0.05244222,136.98,136.95,65.30079787]
[1765377524727,102.1659,137.04,136.96,3.27]
[1765377525640,6.5695,137.0,136.96,9.8412]
[1765377525937,6.5695,137.0,136.99,0.04664947]
[1765377526135,6.5695,137.0,136.95,61.98]
[1765377526136,0.04866387,137.01,136.98,0.04840989]
[1765377526343,6.5702,136.99,136.98,0.04840989]
[1765377528443,6.5702,136.99,136.83,431.144]
[1765377528444,102.2327,136.95,136.89,3.27]
[1765377528641,109.3341712,136.95,136.89,3.27]
[1765377528940,6.5732,136.93,136.89,3.27]
[1765377529351,0.0488648,136.92,136.9,3.31834748]
[1765377530042,0.0488648,136.92,136.9,0.04834748]
[1765377530043,6.6223648,136.92,136.9,0.04834748]
[1765377530242,23.3988648,136.92,136.8,3.27]
[1765377530445,13.6774712,136.87,136.8,3.27]
[1765377530636,7.1014712,136.87,136.8,3.27]
[1765377530939,102.2768,136.89,136.8,3.27]
[1765377531138,6.5761,136.87,136.8,3.27]
[1765377531340,0.05614486,136.86,136.83,0.04650162]
[1765377531643,6.63264486,136.86,136.83,0.04650162]
[1765377531837,0.05614486,136.86,136.83,0.04650162]
[1765377532146,0.05614486,136.86,136.83,3.31650162]
[1765377534642,109.3490712,136.93,136.83,3.31650162]
[1765377534643,7.1014712,136.93,136.83,167.65110162]
[1765377534844,102.2442,136.93,136.84,3.27]
[1765377535346,164.3108,136.95,136.85,3.18]
[1765377535549,102.2442,136.93,136.85,3.18]
[1765377535747,0.04999537,136.9,136.88,0.05414948]
[1765377536650,0.04999537,136.9,136.88,3.23414948]
[1765377537252,0.04999537,136.9,136.88,0.05414948]
[1765377538257,0.04999537,136.9,136.84,3.18]
[1765377539353,6.5749,136.89,136.86,0.04804958]
[1765377539961,6.5749,136.89,136.86,3.22804958]
[1765377540556,6.5754,136.88,136.86,0.04804958]
[1765377541156,6.62449537,136.9,136.86,3.22804958]
[1765377541361,0.04999537,136.9,136.86,3.22804958]
[1765377541760,6.5755,136.88,136.86,0.04804958]
[1765377545663,102.2978,136.86,136.77,3.26]
[1765377545864,102.306,136.85,136.77,3.26]
[1765377546060,6.5811,136.76,136.73,3.26]
[1765377546264,6.5811,136.76,136.69,3.26]
[1765377546265,102.3794,136.75,136.69,3.26]
[1765377546460,83.99,136.77,136.69,3.26]
[1765377546656,0.0524281,136.74,136.72,0.05506398]
[1765377546857,0.0524281,136.74,136.72,3.31506398]
[1765377547161,124.2404,136.79,136.72,3.31506398]
[1765377547162,102.3575,136.78,136.72,3.31506398]
[1765377547466,6.5811,136.76,136.72,3.31506398]
[1765377547652,62.1,136.8,136.72,3.31506398]
[1765377547855,62.1,136.8,136.72,3.26]
[1765377548057,0.04822839,136.77,136.75,0.05066627]
[1765377549168,0.04822839,136.77,136.75,3.31066627]
[1765377549865,0.04822839,136.77,136.75,0.05066627]
[1765377550659,0.04822839,136.77,136.75,3.31066627]
[1765377551857,6.5784,136.82,136.75,6.63186627]
[1765377552059,6.5784,136.82,136.76,3.18]
[1765377552465,7.1014712,136.84,136.76,3.18]
[1765377552665,6.5778,136.83,136.77,9.7603]
[1765377552863,0.0533792,136.81,136.79,0.05288025]
[1765377553058,0.0533792,136.81,136.79,3.23288025]
[1765377553373,6.5765,136.86,136.8,3.18]
[1765377553664,6.5765,136.86,136.8,9.7587]
[1765377553870,102.2783,136.89,136.81,3.18]
[1765377554065,109.3906712,136.87,136.77,3.18]
[1765377554265,0.04843936,136.83,136.81,0.05184222]
[1765377554576,0.04843936,136.83,136.81,3.23184222]
[1765377555565,7.1014712,136.9,136.81,3.23184222]
[1765377555760,7.1014712,136.9,136.81,3.18]
[1765377555970,102.2815,136.88,136.81,3.18]
[1765377556171,102.2776,136.89,136.77,3.18]
[1765377556172,102.3047,136.85,136.77,3.18]
[1765377556557,6.62975919,136.82,136.8,0.05615647]
[1765377558579,102.3456,136.8,136.69,3.18]
[1765377558777,109.4470712,136.8,136.69,3.18]
[1765377558968,109.4470712,136.8,136.72,3.18]
[1765377559274,6.5801,136.78,136.72,3.18]
[1765377559471,0.05240692,136.76,136.74,3.22970609]
[1765377559973,171.5649712,136.83,136.74,3.22970609]
[1765377560168,6.5784,136.82,136.75,3.18]
[1765377560367,69.2414712,136.83,136.75,3.18]
[1765377560975,0.05580775,136.8,136.78,0.05337032]
[1765377561372,6.63500775,136.8,136.78,0.05337032]
[1765377561768,6.5773,136.84,136.78,3.23337032]
[1765377562073,102.2691,136.9,136.79,3.18]
[1765377562262,109.3560712,136.92,136.81,3.18]
[1765377562577,6.574,136.91,136.83,6.5774]
[1765377562777,0.04200877,136.88,136.86,0.05543367]
[1765377564365,6.61740877,136.88,136.86,0.05543367]
[1765377565373,6.61740877,136.88,136.79,71.8393]
[1765377565374,0.04200877,136.88,136.8,3.18]
[1765377565568,109.3781712,136.89,136.8,3.18]
[1765377565768,102.2894,136.87,136.8,3.18]
[1765377565970,102.297,136.86,136.8,3.18]
[1765377566276,0.0467569,136.84,136.82,0.05014304]
[1765377566578,6.6240569,136.84,136.82,0.05014304]
[1765377567165,6.5786,136.81,136.76,3.18]
[1765377567772,102.3168,136.84,136.76,3.18]
[1765377568071,6.5782,136.82,136.76,3.18]
[1765377568265,0.05204128,136.8,136.79,3.18]
[1765377568463,0.04806517,136.81,136.78,0.05558369]
[1765377569080,0.04806517,136.81,136.78,3.23558369]
[1765377570075,0.04806517,136.81,136.79,3.18]
[1765377570278,6.5769,136.85,136.79,3.18]
[1765377570673,6.5769,136.85,136.8,3.18]
[1765377571177,0.04743401,136.84,136.81,3.235899]
[1765377572375,0.04743401,136.84,136.81,0.055899]
[1765377572583,102.36223401,136.84,136.81,0.055899]
[1765377573079,6.5777,136.83,136.81,0.055899]
[1765377574481,0.04743401,136.84,136.81,3.235899]
[1765377574980,6.62463401,136.84,136.81,3.235899]
[1765377578087,0.04743401,136.84,136.81,3.235899]
[1765377579989,0.04743401,136.84,136.81,0.055899]
[1765377581692,6.62463401,136.84,136.81,3.235899]
[1765377581888,6.62463401,136.84,136.81,0.055899]
[1765377582085,6.5776,136.83,136.81,0.055899]
[1765377585594,6.5776,136.83,136.69,103.69230882]
[1765377585595,102.3429,136.8,136.72,3.18]
[1765377585796,102.3429,136.8,136.72,9.7627]
[1765377586192,102.3429,136.8,136.73,3.18]
[1765377586193,6.5806,136.77,136.73,3.18]
[1765377586496,0.05570058,136.76,136.74,0.04861376]
[1765377587094,0.05570058,136.76,136.74,9.81041376]
[1765377587294,0.05570058,136.76,136.75,3.18]
[1765377587698,102.3114,136.84,136.76,6.5808]
[1765377587892,102.3114,136.84,136.76,9.7608]
[1765377588097,186.3368,136.85,136.76,3.18]
[1765377588098,164.4468,136.85,136.76,3.18]
[1765377588493,102.3117,136.84,136.76,3.18]
[1765377588799,102.3117,136.84,136.79,0.05102892]
[1765377588800,0.050002,136.81,136.79,0.05102892]
[1765377590596,6.628702,136.81,136.79,0.05102892]
[1765377593007,6.5806,136.77,136.72,12.20980561]
[1765377593197,102.3494,136.79,136.72,3.18]
[1765377593706,102.3416,136.8,136.72,3.18]
[1765377594207,6.581,136.76,136.75,0.04697533]
[1765377594703,0.05456811,136.77,136.75,0.04697533]
[1765377595212,0.05456811,136.77,136.75,3.22697533]
[1765377595502,0.05456811,136.77,136.75,0.04697533]
[1765377596113,0.05456811,136.77,136.75,3.22697533]
[1765377596610,0.05456811,136.77,136.75,0.04697533]
[1765377597314,0.05456811,136.77,136.75,3.22697533]
[1765377598012,102.3053,136.85,136.75,3.22697533]
[1765377598013,102.3217,136.83,136.75,3.22697533]
[1765377598209,102.3353,136.81,136.75,3.22697533]
[1765377598407,102.3414,136.8,136.75,3.22697533]
[1765377599105,6.5805,136.77,136.75,3.22697533]
[1765377599511,0.04757198,136.79,136.75,3.22697533]
[1765377600217,6.5801,136.78,136.75,3.22697533]
[1765377600418,0.04757198,136.79,136.75,3.22697533]
[1765377600615,102.39927198,136.79,136.75,3.22697533]
[1765377601035,102.39927198,136.79,136.75,0.04697533]
[1765377601620,6.5805,136.77,136.75,0.04697533]
[1765377602318,6.5805,136.77,136.7,62.08]
[1765377602512,6.5834,136.71,136.7,62.08]
[1765377602817,102.3868,136.74,136.7,62.08]
[1765377603115,102.3868,136.74,136.67,3.18]
[1765377603723,6.63023138,136.72,136.69,3.23094216]
[1765377604317,6.5835,136.71,136.69,3.23094216]
[1765377604524,0.04713138,136.72,136.69,3.23094216]
[1765377605114,0.04713138,136.72,136.69,0.05094216]
[1765377605313,204.8987,136.66,136.63,3.247e-05]
[1765377605508,102.4609,136.65,136.58,3.27]
[1765377605924,6.5874,136.63,136.58,3.27]
[1765377606220,102.4609,136.65,136.55,6.5908]
[1765377606221,102.4393,136.67,136.6,3.27]
[1765377606527,6.5855,136.67,136.6,3.27]
[1765377607016,6.5845,136.69,136.61,3.27]
[1765377607217,6.5845,136.69,136.6,12.39613024]
[1765377607218,0.04883655,136.66,136.65,3.27]
[1765377607422,102.4012,136.72,136.65,3.27]
[1765377607613,6.5836,136.71,136.65,3.27]
[1765377608317,0.04704332,136.69,136.67,3.31983399]
[1765377608529,0.04908177,136.69,136.67,3.31983399]
[1765377609220,102.3746,136.76,136.68,3.27]
[1765377609727,6.5822,136.74,136.68,3.27]
[1765377610114,0.04708468,136.72,136.7,3.32032831]
[1765377614430,102.3598,136.78,136.7,3.32032831]
[1765377615136,6.5812,136.76,136.7,3.32032831]
[1765377615322,102.3427,136.8,136.7,3.32032831]
[1765377615525,6.5807,136.77,136.74,0.05598934]
[1765377616227,6.5798,136.79,136.74,3.32598934]
[1765377616428,102.3431,136.8,136.74,0.05598934]
[1765377617522,102.3651,136.77,136.74,0.05598934]
[1765377617722,102.3833,136.75,136.67,3.13]
[1765377617929,102.3861,136.74,136.67,3.13]
[1765377618125,102.3944,136.73,136.67,3.13]
[1765377618427,102.3944,136.73,136.65,62.12]
[1765377618615,0.05384114,136.7,136.68,0.0554711]
[1765377619927,0.05384114,136.7,136.68,3.1854711]
[1765377621333,164.5313,136.79,136.68,3.1854711]
[1765377621531,164.5313,136.79,136.68,3.13]
[1765377621727,186.4813,136.79,136.68,3.13]
[1765377622032,6.5808,136.77,136.7,3.13]
[1765377622230,12.39613024,136.81,136.7,3.13]
[1765377622430,12.39613024,136.81,136.74,0.04924773]
[1765377622735,34.34613024,136.81,136.74,0.04924773]
[1765377623434,12.39613024,136.81,136.74,0.04924773]
[1765377623728,102.3565,136.78,136.74,0.04924773]
[1765377623936,102.365,136.77,136.74,0.04924773]
[1765377624135,6.5811,136.76,136.74,0.04924773]
[1765377627743,6.5826,136.73,136.68,3.13]
[1765377628541,114.75263024,136.78,136.68,3.13]
[1765377628542,6.5817,136.75,136.68,3.13]
[1765377628740,0.0493356,136.73,136.7,3.1789646]
[1765377630733,6.6318356,136.73,136.7,3.1789646]
[1765377631038,0.0493356,136.73,136.7,3.1789646]
[1765377631940,6.6321356,136.73,136.7,3.1789646]
[1765377632142,0.0493356,136.73,136.7,3.1789646]
[1765377632336,102.3504,136.79,136.7,3.1789646]
[1765377632536,6.5804,136.78,136.73,3.13]
[1765377633033,6.5805,136.77,136.73,3.13]
[1765377633244,102.349,136.79,136.74,0.05101362]
[1765377633439,102.349,136.79,136.74,3.18101362]
[1765377633634,6.5812,136.76,136.74,3.18101362]
[1765377633836,6.5812,136.76,136.74,0.05101362]
[1765377637544,6.5812,136.76,136.74,3.10101362]
[1765377637745,6.5802,136.78,136.74,3.10101362]
[1765377638944,102.3287,136.82,136.74,3.10101362]
[1765377639654,6.58,136.78,136.74,3.10101362]
[1765377639954,102.3287,136.82,136.74,3.10101362]
[1765377640954,6.5796,136.79,136.75,3.05]
[1765377641247,6.5796,136.79,136.74,6.63281362]
[1765377641248,6.5796,136.79,136.76,3.10441816]
[1765377641852,6.5796,136.79,136.76,0.05441816]
[1765377642152,6.5796,136.79,136.76,3.10441816]
[1765377642550,6.5789,136.81,136.76,3.10441816]
[1765377642751,102.3076,136.85,136.76,3.10441816]
[1765377642945,102.3271,136.82,136.79,0.04905823]
[1765377643151,102.3356,136.81,136.73,3.05]
[1765377644055,6.63141856,136.78,136.76,0.04726526]
[1765377644654,0.05111856,136.78,136.76,0.04726526]
[1765377644855,0.05111856,136.78,136.7,3.05]
[1765377645156,7.1311849,136.77,136.7,3.05]
[1765377645855,0.05600769,136.75,136.72,3.10157149]
[1765377646949,0.05600769,136.75,136.72,9.68427149]
[1765377647145,0.05600769,136.75,136.73,3.05]
[1765377647650,0.05600769,136.75,136.73,9.6323]
[1765377647856,0.05600769,136.75,136.74,3.05]
[1765377648556,0.05600769,136.75,136.72,0.05157149]
[1765377648949,6.63750769,136.75,136.72,0.05157149]
[1765377650454,0.05600769,136.75,136.72,3.10157149]
[1765377651853,0.05600769,136.75,136.72,9.68437149]
[1765377652053,0.05600769,136.75,136.72,3.10157149]
[1765377652553,0.05600769,136.75,136.73,3.05]
[1765377653455,0.05600769,136.75,136.72,0.05157149]
[1765377653660,0.05600769,136.75,136.72,3.10157149]
[1765377654862,6.582,136.74,136.72,3.10157149]
[1765377656467,0.05600769,136.75,136.72,3.10157149]
[1765377657868,6.63740769,136.75,136.72,3.10157149]
[1765377658273,0.05600769,136.75,136.72,3.10157149]
[1765377659957,2.99356165,136.81,136.73,3.05]
[1765377660161,2.99356165,136.83,136.75,3.05]
[1765377660361,2.99356165,136.83,136.77,3.05]
[1765377660562,107.51292457,136.86,136.77,3.05]
[1765377660765,6.5781,136.82,136.77,3.05]
[1765377660966,0.04237613,136.81,136.79,3.05]
[1765377661569,7.12199322,136.86,136.79,3.05]
[1765377661757,107.09630684,136.88,136.79,3.05]
[1765377661758,10.02543141,136.88,136.79,3.05]
[1765377661964,7.12199322,136.89,136.79,3.05]
[1765377662462,6.5752,136.88,136.8,3.05]
[1765377662660,6.5752,136.88,136.83,3.10336626]
[1765377663578,7.12199322,136.89,136.83,3.10336626]
[1765377664069,7.12199322,136.89,136.83,0.05336626]
[1765377664267,109.39899322,136.89,136.83,0.05336626]
[1765377664670,109.37979322,136.92,136.83,3.26336626]
[1765377664972,7.12199322,136.89,136.86,0.0467271]
[1765377665161,7.12199322,136.89,136.86,0.0492086]
[1765377665368,7.12199322,136.92,136.86,3.2592086]
[1765377665563,12.31683653,136.95,136.88,3.26179481]
[1765377665765,7.12199322,136.95,136.88,3.26179481]
[1765377665963,6.5726,136.94,136.88,3.26179481]
[1765377667169,6.5716,136.96,136.89,3.21]
[1765377667362,7.12199322,136.98,136.91,3.25609173]
[1765377667563,102.195,137.0,136.91,3.25609173]
[1765377667762,109.31699322,137.0,136.94,0.05177973]
[1765377667980,6.5706,136.98,136.94,0.05177973]
[1765377669169,109.31699322,137.0,136.94,0.05177973]
[1765377669170,6.5711,136.97,136.94,0.05177973]
[1765377669375,6.5711,136.97,136.94,3.26177973]
[1765377670177,6.5701,136.99,136.94,3.26177973]
[1765377670371,102.1948,137.0,136.94,3.26177973]
[1765377670680,109.30899322,137.01,136.94,0.05177973]
[1765377670681,102.2078,136.98,136.94,0.05177973]
[1765377670878,6.5706,136.98,136.94,3.26177973]
[1765377671180,164.3167,137.03,136.94,3.26177973]
[1765377671381,6.5696,137.0,136.97,0.05122852]
[1765377671981,6.5701,136.99,136.97,0.05122852]
[1765377672375,102.2225,136.96,136.87,62.0]
[1765377672578,102.2293,136.95,136.88,3.21]
[1765377672877,6.5721,136.95,136.88,3.21]
[1765377673080,102.2036,136.99,136.88,3.21]
[1765377673486,0.04866548,136.95,136.93,3.21]
[1765377673687,0.0495894,136.95,136.93,3.2591746]
[1765377675282,0.0495894,136.95,136.93,0.0491746]
[1765377675485,102.2392,136.94,136.87,3.21]
[1765377675693,109.36849322,136.93,136.87,3.21]
[1765377676183,6.5744,136.9,136.87,3.21]
[1765377676385,102.2597,136.91,136.84,3.21]
[1765377676587,0.05129699,136.89,136.86,3.26416787]
[1765377677686,7.12199322,136.96,136.87,3.2]
[1765377677985,102.2383,136.94,136.87,3.2]
[1765377678185,6.5735,136.92,136.87,3.2]
[1765377678782,0.04910613,136.91,136.88,0.04611646]
[1765377678983,6.62300613,136.91,136.88,0.04611646]
[1765377679482,0.04910613,136.91,136.88,0.04611646]
[1765377679679,6.5747,136.89,136.88,0.04611646]
[1765377680295,6.5756,136.88,136.8,6.5787]
[1765377680503,6.5756,136.88,136.8,71.8387]
[1765377680693,6.5756,136.88,136.82,3.2]
[1765377681091,102.2235,136.96,136.82,3.2]
[1765377681293,109.35389322,136.95,136.88,0.0484735]
[1765377681692,0.04635212,136.93,136.88,0.0484735]
[1765377681994,102.29,136.87,136.76,102.3675]
[1765377682301,7.12199322,136.86,136.79,3.2]
[1765377682498,102.2783,136.89,136.8,3.2]
[1765377682499,7.12199322,136.89,136.8,3.2]
[1765377682698,7.12199322,136.89,136.81,6.5783]
[1765377682899,7.12199322,136.89,136.81,9.7783]
[1765377683101,0.05186326,136.86,136.84,0.04638976]
[1765377684003,102.2491,136.93,136.84,3.24638976]
[1765377684299,7.12199322,136.92,136.84,3.2]
[1765377684502,13.69559322,136.92,136.85,6.5763]
[1765377684705,102.2491,136.93,136.85,6.5763]
[1765377685202,0.05148121,136.9,136.88,0.05527097]
[1765377685404,6.62578121,136.9,136.88,0.05527097]
[1765377686101,0.05148121,136.9,136.88,3.25527097]
[1765377686300,7.12199322,136.95,136.88,3.25527097]
[1765377686804,102.2444,136.93,136.88,0.05527097]
[1765377687299,0.04035161,136.92,136.88,0.05527097]
[1765377687903,6.5739,136.91,136.88,0.05527097]
[1765377688203,0.04035161,136.92,136.88,3.25527097]
[1765377690004,6.61375161,136.92,136.88,3.25527097]
[1765377691107,6.574,136.91,136.88,3.25527097]
[1765377692007,0.04035161,136.92,136.88,3.25527097]
[1765377692599,6.61375161,136.92,136.88,3.25527097]
[1765377692907,7.16234483,136.92,136.88,0.05527097]
[1765377693102,102.2605,136.91,136.88,0.05527097]
[1765377693297,0.04035161,136.92,136.88,0.05527097]
[1765377693503,0.04035161,136.92,136.88,3.25527097]
[1765377694495,6.5711,136.97,136.89,3.15]
[1765377694800,102.1961,137.0,136.9,3.15]
[1765377694999,109.30959322,137.01,136.91,3.15]
[1765377695708,109.30959322,137.01,136.95,0.05294803]
[1765377695909,6.57,136.99,136.95,0.05294803]
[1765377696716,6.5692,137.01,136.95,3.20294803]
[1765377697396,102.1879,137.01,136.95,3.20294803]
[1765377697608,102.2081,136.98,136.95,0.05294803]
[1765377698312,6.5705,136.98,136.95,0.05294803]
[1765377699012,6.5705,136.98,136.95,3.20294803]
[1765377700499,102.1639,137.04,136.95,3.20294803]
[1765377700705,102.141,137.07,136.98,3.19911234]
[1765377700912,102.141,137.07,137.01,0.05027653]
[1765377701613,6.5673,137.05,137.02,3.15]
[1765377702014,6.5663,137.07,137.02,3.15]
[1765377702313,102.1401,137.07,137.01,0.05027653]
[1765377702514,102.148,137.06,137.01,0.05027653]
[1765377702907,6.5673,137.05,137.01,3.20027653]
[1765377703611,6.5673,137.05,137.01,0.05027653]
[1765377703815,102.1623,137.04,137.01,0.05027653]
[1765377704015,102.1944,137.0,136.92,3.15]
[1765377704410,102.1996,136.99,136.92,3.15]
[1765377704617,102.1842,137.02,136.92,3.15]
[1765377704820,102.1865,137.01,136.92,3.15]
[1765377705115,0.05027654,136.98,136.95,3.20593383]
[1765377708204,0.05027654,136.98,136.96,3.15]
[1765377709918,102.1653,137.04,136.96,3.15]
[1765377710119,164.2208,137.07,136.97,3.15]
[1765377710415,102.1558,137.05,136.97,3.15]
[1765377710816,6.5686,137.02,136.97,3.15]
[1765377711017,6.5686,137.02,137.0,0.05465065]
[1765377711718,6.5701,136.99,136.95,62.02]
[1765377712221,6.5701,136.99,136.95,65.17]
[1765377712721,0.05183883,136.98,136.96,0.056136]
[1765377713219,6.62233883,136.98,136.96,0.056136]
[1765377713421,0.05183883,136.98,136.96,0.056136]
[1765377713721,0.05183883,136.98,136.96,3.206136]
[1765377714113,0.05183883,136.98,136.96,0.056136]
[1765377715722,0.05183883,136.98,136.96,3.206136]
[1765377716324,0.05183883,136.98,136.96,0.056136]
[1765377716726,0.05183883,136.98,136.96,3.206136]
[1765377718729,74.42853686,137.06,136.97,3.15]
[1765377718920,102.1568,137.05,136.97,3.15]
[1765377719316,6.569,137.01,136.97,3.15]
[1765377719727,102.171,137.03,136.98,0.05250574]
[1765377719933,6.5695,137.0,136.98,0.05250574]
[1765377720529,6.5689,137.02,136.98,3.20250574]
[1765377721049,102.142,137.07,136.98,3.20250574]
[1765377721221,102.1285,137.09,136.95,102.2257]
[1765377721222,164.1885,137.09,137.02,3.15]
[1765377721427,102.1285,137.09,137.04,0.05388953]
[1765377721734,102.1056,137.12,137.04,3.20388953]
[1765377722738,6.5659,137.08,137.04,3.20388953]
[1765377723424,6.5648,137.1,137.04,3.20388953]
[1765377724025,6.5639,137.12,137.05,3.02]
[1765377724226,6.5639,137.12,137.07,3.07368916]
[1765377724623,6.5643,137.11,137.07,3.07368916]
[1765377725620,6.5634,137.13,137.07,3.07368916]
[1765377726641,6.5625,137.15,137.07,3.07368916]
[1765377726935,6.5625,137.15,137.1,3.06624965]
[1765377727141,102.0236,137.23,137.13,3.02]
[1765377727341,0.05281182,137.19,137.17,0.0007585]
[1765377727633,0.05281182,137.19,137.11,3.02]
[1765377727940,176.43213686,137.23,137.12,3.02]
[1765377728136,102.021,137.23,137.14,3.02]
[1765377728557,0.0521043,137.2,137.17,0.04807081]
[1765377728835,0.0521043,137.2,137.17,3.19807081]
[1765377729838,105.55983247,137.27,137.19,3.15]
[1765377729839,10.12203247,137.27,137.19,3.15]
[1765377730037,3.56533247,137.27,137.19,3.15]
[1765377730538,101.9982,137.26,137.19,3.15]
[1765377730734,102.006,137.25,137.16,61.98]
[1765377730933,102.0142,137.24,137.19,0.04812815]
[1765377731142,102.0286,137.22,137.19,0.04812815]
[1765377731440,6.5596,137.21,137.19,0.04812815]
[1765377732437,6.5586,137.23,137.19,0.04812815]
[1765377732640,105.55923247,137.27,137.19,3.19812815]
[1765377733041,6.5576,137.25,137.19,3.19812815]
[1765377733243,102.0065,137.25,137.19,0.04812815]
[1765377733544,6.5575,137.25,137.19,3.19812815]
[1765377734039,6.5582,137.24,137.19,3.19812815]